[Event "Lueneburger Schachfestival GM 2019"]
[Site "Lueneburg"]
[Date "2019.08.03"]
[Round "1.1"]
[White "Sriram, Jha"]
[Black "Reuker, Jari"]
[Result "1-0"]
[ECO "D02"]
[WhiteElo "2381"]
[BlackElo "2403"]
[Annotator "NA"]
[PlyCount "55"]
[EventDate "2019.08.02"]
[EventType "tourn"]
[EventCountry "GER"]
[SourceTitle "playchess.com"]
[Source "ChessBase"]
[SourceQuality "1"]
[TimeControl "40/5400+30:1800+30"]

1. Nf3 Nf6 2. g3 d5 3. Bg2 Bg4 4. O-O Nbd7 5. d4 e6 6. h3 Bh5 7. c4 c6 8. cxd5 exd5 9. Qb3 Qb6 10. Qe3+ Be7 11. Nh4 Bg6 12. Nc3 Kf8 13. Nxg6+ hxg6 14. Qd3 Kg8 15. Rb1 a5 16. Rd1 Qa6 17. Qc2 b5 18. e4 b4 19. exd5 bxc3 20. dxc6 Nb6 21. bxc3 Bd6 22. Bf1 Qa7 23. c4 Rc8 24. Bg2 Bf8 25. Qb3 Bb4 26. a3 Qa6 27. axb4 a4 28. b5 1-0

[Event "Lueneburger Schachfestival GM 2019"]
[Site "Lueneburg"]
[Date "2019.08.03"]
[Round "1.2"]
[White "Pajeken, Jakob Leon"]
[Black "Ovsejevitsch, Sergei"]
[Result "0-1"]
[ECO "A46"]
[WhiteElo "2314"]
[BlackElo "2590"]
[Annotator "ChessBase"]
[PlyCount "94"]
[EventDate "2019.08.02"]
[EventType "tourn"]
[EventCountry "GER"]
[SourceTitle "playchess.com"]
[Source "ChessBase"]
[SourceQuality "1"]
[TimeControl "40/5400+30:1800+30"]

1. d4 Nf6 2. Nf3 e6 3. Bf4 b5 4. e3 a6 5. c3 Bb7 6. Nbd2 Be7 7. h3 c5 8. a4 b4 9. Be2 O-O 10. Bh2 Nc6 11. O-O d5 12. dxc5 bxc3 13. bxc3 Bxc5 14. Rb1 Qe7 15. Nb3 Ba7 16. c4 Rfd8 17. Qc2 Rac8 18. Qb2 dxc4 19. Bxc4 Nb4 20. Ne5 Be4 21. Rbd1 Nfd5 22. Nd4 f6 23. Bxd5 Rxd5 24. Nef3 e5 25. Nb3 Rc2 26. Qb1 Qb7 27. Rxd5 Nxd5 28. Ne1 Nc3 29. Qa1 Qxb3 30. Nxc2 Qxc2 31. Kh1 Bxe3 32. f3 Bd3 33. Bg1 Bxf1 34. Qxf1 Qxa4 35. Bxe3 Qd1 36. Qxd1 Nxd1 37. Bd2 Kf7 38. Kg1 Ke6 39. Kf1 Kd5 40. Ke2 Nb2 41. Bc3 Nc4 42. Kd3 f5 43. g4 f4 44. h4 g6 45. Bb4 a5 46. Be7 a4 47. Kc3 Na5 0-1

[Event "Lueneburger Schachfestival GM 2019"]
[Site "Lueneburg"]
[Date "2019.08.03"]
[Round "1.4"]
[White "Wachinger, Nikolas"]
[Black "Vorobiov, Evgeny E."]
[Result "0-1"]
[ECO "B33"]
[WhiteElo "2318"]
[BlackElo "2578"]
[Annotator "ChessBase"]
[PlyCount "64"]
[EventDate "2019.08.02"]
[EventType "tourn"]
[EventCountry "GER"]
[SourceTitle "playchess.com"]
[Source "ChessBase"]
[SourceQuality "1"]
[TimeControl "40/5400+30:1800+30"]

1. e4 c5 2. Nf3 e6 3. d4 cxd4 4. Nxd4 Nc6 5. Nc3 Nf6 6. Ndb5 d6 7. Bf4 e5 8. Bg5 a6 9. Na3 b5 10. Nd5 Be7 11. Bxf6 Bxf6 12. c4 b4 13. Nc2 O-O 14. Qf3 Bg5 15. h4 Bh6 16. g4 f6 17. Bd3 a5 18. Qg3 Bf4 19. Nxf4 exf4 20. Qxf4 Ne5 21. Rh3 Bxg4 22. Rg3 Qc7 23. Nd4 Rae8 24. Kd2 Nxc4+ 25. Bxc4+ Qxc4 26. Rd3 f5 27. b3 Qc5 28. Rc1 fxe4 29. Qxg4 Rxf2+ 30. Ne2 exd3 31. Rxc5 dxe2 32. Qc4+ Kf8 0-1

[Event "Lueneburger Schachfestival GM 2019"]
[Site "Lueneburg"]
[Date "2019.08.03"]
[Round "1.5"]
[White "Korley, Kassa"]
[Black "Polster, Christian"]
[Result "0-1"]
[ECO "B07"]
[WhiteElo "2437"]
[BlackElo "2254"]
[Annotator "NA"]
[PlyCount "102"]
[EventDate "2019.08.02"]
[EventType "tourn"]
[EventCountry "GER"]
[SourceTitle "playchess.com"]
[Source "ChessBase"]
[SourceQuality "1"]
[TimeControl "40/5400+30:1800+30"]

1. d4 Nf6 2. Nf3 d6 3. g3 g6 4. Bg2 Bg7 5. O-O O-O 6. Re1 Nbd7 7. e4 e5 8. Nc3 c6 9. a4 a5 10. h3 Qc7 11. Be3 Re8 12. d5 Nc5 13. Nd2 Bd7 14. Bxc5 dxc5 15. Nc4 Red8 16. Qe2 Ne8 17. Rad1 Bf8 18. Qf1 f6 19. f4 Nd6 20. dxc6 Bxc6 21. fxe5 Nxc4 22. Qxc4+ Kh8 23. exf6 Qxg3 24. Nd5 Bd6 25. Re2 Qh2+ 26. Kf1 Qe5 27. Rf2 Rab8 28. Nb6 Qxb2 29. Qf7 Bf8 30. Rfd2 Rxd2 31. Rxd2 Qxb6 32. e5 Qb4 33. Bd5 Qf4+ 34. Rf2 Qc1+ 35. Kg2 Qg5+ 36. Kf1 Bxd5 37. Qxd5 Re8 38. Re2 Qf5+ 39. Kg2 Qe6 40. Qxe6 Rxe6 41. Kf3 Kg8 42. Ke4 Kf7 43. c4 Bd6 44. Kd5 Bc7 45. Re1 b6 46. Re2 g5 47. Re1 h5 48. Re2 Rxe5+ 49. Rxe5 Bxe5 50. Kxe5 g4 51. hxg4 hxg4 0-1

[Event "Lueneburger Schachfestival GM 2019"]
[Site "Lueneburg"]
[Date "2019.08.03"]
[Round "2.1"]
[White "Reuker, Jari"]
[Black "Polster, Christian"]
[Result "1-0"]
[ECO "A13"]
[WhiteElo "2403"]
[BlackElo "2254"]
[Annotator "NA"]
[PlyCount "75"]
[EventDate "2019.08.02"]
[EventType "tourn"]
[EventCountry "GER"]
[SourceTitle "playchess.com"]
[Source "ChessBase"]
[SourceQuality "1"]
[TimeControl "40/5400+30:1800+30"]

1. c4 {[%emt 0:00:00]} e6 {[%emt 0:00:03]} 2. g3 {[%emt 0:00:00]} Nf6 {[%emt 0:00:32]} 3. Bg2 {[%emt 0:00:08]} d5 {[%emt 0:00:13]} 4. Nf3 {[%emt 0:00:17]} c6 {[%emt 0:06:29]} 5. b3 {[%emt 0:04:52]} Bd6 {[%emt 0:02:30]} 6. Bb2 {[%emt 0:02:04]} Nbd7 {[%emt 0:00:36]} 7. O-O {[%emt 0:00:49]} e5 {[%emt 0:06:43]} 8. Nh4 {[%emt 0:17:48]} Nf8 {[%emt 0:28:11]} 9. cxd5 {[%emt 0:03:31]} cxd5 {[%emt 0:02:29]} 10. Nc3 {[%emt 0:05:21]} Be6 {[%emt 0:01:49]} 11. Nf3 {[%emt 0:11:00]} d4 {[%emt 0:09:17]} 12. Nb5 {[%emt 0:02:28]} Bb8 {[%emt 0:01:02]} 13. e3 {[%emt 0:06:03]} Qb6 {[%emt 0:08:18]} 14. Na3 {[%emt 0:02:44]} dxe3 {[%emt 0:00:30]} 15. fxe3 {[%emt 0:05:46]} N8d7 {[%emt 0:03:06]} 16. Ng5 {[%emt 0:01:34]} Bg4 {[%emt 0:00:49]} 17. Qc2 {[%emt 0:03:48]} O-O {[%emt 0:00:45]} 18. Nc4 {[%emt 0:00:04]} Qa6 {[%emt 0:01:24]} 19. Nxe5 {[%emt 0:04:25]} Bxe5 {[%emt 0:12:16]} 20. Bxe5 {[%emt 0:00:24]} Nxe5 {[%emt 0:01:51]} 21. Rxf6 {[%emt 0:00:15]} Qd3 {[%emt 0:01:31]} 22. Qxd3 {[%emt 0:00:07]} Nxd3 {[%emt 0:00:05]} 23. Rd6 {[%emt 0:00:06]} Rad8 {[%emt 0:00:58]} 24. Rxd8 {[%emt 0:01:45]} Rxd8 {[%emt 0:00:05]} 25. Bxb7 {[%emt 0:00:48]} f6 {[%emt 0:02:18]} 26. Ne4 {[%emt 0:16:33]} Bf5 {[%emt 0:03:20]} 27. Nc3 {[%emt 0:02:21]} Nb4 {[%emt 0:02:12]} 28. Rf1 {[%emt 0:03:08]} Bh3 {[%emt 0:01:14]} 29. Rf4 {[%emt 0:00:48]} a5 {[%emt 0:02:23]} 30. Rd4 {[%emt 0:02:34]} Rb8 {[%emt 0:01:01]} 31. Bd5+ {[%emt 0:00:50]} Kf8 {[%emt 0:00:24]} 32. Be4 {[%emt 0:00:22]} g6 {[%emt 0:00:40]} 33. Rc4 {[%emt 0:01:58]} Be6 {[%emt 0:00:39]} 34. Rc7 {[%emt 0:00:38]} f5 {[%emt 0:00:18]} 35. Bb1 {[%emt 0:00:38]} Rd8 {[%emt 0:00:49]} 36. d4 {[%emt 0:00:15]} Nd5 {[%emt 0:00:05]} 37. Nxd5 {[%emt 0:00:08]} Bxd5 {[%emt 0:00:06]} 38. Bd3 {[%emt 0:00:41]} 1-0

[Event "Lueneburger Schachfestival GM 2019"]
[Site "Lueneburg"]
[Date "2019.08.03"]
[Round "2.2"]
[White "Vorobiov, Evgeny E."]
[Black "Korley, Kassa"]
[Result "1/2-1/2"]
[ECO "B15"]
[WhiteElo "2578"]
[BlackElo "2437"]
[Annotator "ChessBase"]
[PlyCount "56"]
[EventDate "2019.08.02"]
[EventType "tourn"]
[EventCountry "GER"]
[SourceTitle "playchess.com"]
[Source "ChessBase"]
[SourceQuality "1"]
[TimeControl "40/5400+30:1800+30"]

1. e4 {[%emt 0:00:00]} c6 {[%emt 0:00:00]} 2. Nc3 {[%emt 0:00:00]} d5 {[%emt 0:00:00]} 3. Nf3 {[%emt 0:00:00]} g6 {[%emt 0:01:55]} 4. d4 {[%emt 0:01:21]} Bg7 {[%emt 0:00:06]} 5. h3 {[%emt 0:00:05]} Nf6 {[%emt 0:00:52]} 6. e5 {[%emt 0:00:22]} Ne4 {[%emt 0:00:05]} 7. Nxe4 {[%emt 0:01:55]} dxe4 {[%emt 0:00:02]} 8. Ng5 {[%emt 0:00:05]} c5 {[%emt 0:01:28]} 9. d5 {[%emt 0:01:41]} Bxe5 {[%emt 0:05:24]} 10. Nxe4 {[%emt 0:00:09]} Bf5 {[%emt 0:04:27]} 11. Ng3 {[%emt 0:06:23]} Bxg3 {[%emt 0:11:11]} 12. fxg3 {[%emt 0:00:10]} O-O {[%emt 0:00:04]} 13. Bh6 {[%emt 0:08:48]} Qd6 {[%emt 0:06:13]} 14. Qf3 {[%emt 0:09:30]} Qe5+ {[%emt 0:00:31]} 15. Be2 {[%emt 0:01:02]} Qxb2 {[%emt 0:19:20]} 16. O-O {[%emt 0:04:10]} Qd4+ {[%emt 0:05:23]} 17. Kh2 {[%emt 0:07:34]} Nd7 {[%emt 0:03:07]} 18. Rad1 {[%emt 0:01:20]} Qe5 {[%emt 0:01:06]} 19. Bxf8 {[%emt 0:04:10]} Rxf8 {[%emt 0:00:02]} 20. Bd3 {[%emt 0:08:00]} Bxd3 {[%emt 0:00:14]} 21. Rxd3 {[%emt 0:00:09]} Qd6 {[%emt 0:00:08]} 22. Re3 {[%emt 0:01:20]} Ne5 {[%emt 0:00:14]} 23. Qe2 {[%emt 0:00:26]} f6 {[%emt 0:00:10]} 24. c4 {[%emt 0:00:15]} a6 {[%emt 0:02:03]} 25. Rf4 {[%emt 0:00:52]} b5 {[%emt 0:00:39]} 26. cxb5 {[%emt 0:02:17]} axb5 {[%emt 0:00:02]} 27. Qxb5 {[%emt 0:14:19]} Rb8 {[%emt 0:00:03]} 28. Qe2 {[%emt 0:00:47]} Qxd5 {[%emt 0:00:04]} 1/2-1/2

[Event "Lueneburger Schachfestival GM 2019"]
[Site "Lueneburg"]
[Date "2019.08.03"]
[Round "2.3"]
[White "Koellner, Ruben Gideon"]
[Black "Wachinger, Nikolas"]
[Result "1-0"]
[ECO "D02"]
[WhiteElo "2315"]
[BlackElo "2318"]
[Annotator "NA"]
[PlyCount "87"]
[EventDate "2019.08.02"]
[EventType "tourn"]
[EventCountry "GER"]
[SourceTitle "playchess.com"]
[Source "ChessBase"]
[SourceQuality "1"]
[TimeControl "40/5400+30:1800+30"]

1. d4 {[%emt 0:00:00]} Nf6 {[%emt 0:00:00]} 2. Bf4 {[%emt 0:00:00]} d5 {[%emt 0:00:00]} 3. e3 {[%emt 0:00:00]} c5 {[%emt 0:00:00]} 4. c3 {[%emt 0:00:00]} Nc6 {[%emt 0:00:10]} 5. Nd2 {[%emt 0:00:00]} e6 {[%emt 0:00:19]} 6. Ngf3 {[%emt 0:00:00]} cxd4 {[%emt 0:00:13]} 7. exd4 {[%emt 0:00:00]} Nh5 {[%emt 0:00:12]} 8. Be3 {[%emt 0:00:03]} Bd6 {[%emt 0:00:11]} 9. Ne5 {[%emt 0:00:05]} g6 {[%emt 0:00:07]} 10. Nd3 {[%emt 0:00:09]} Ng7 {[%emt 0:03:05]} 11. g3 {[%emt 0:00:17]} b6 {[%emt 0:02:42]} 12. Bg2 {[%emt 0:01:51]} Nf5 {[%emt 0:05:07]} 13. O-O {[%emt 0:03:24]} O-O {[%emt 0:06:16]} 14. Bf4 {[%emt 0:07:24]} Ba6 {[%emt 0:05:15]} 15. Bxd6 {[%emt 0:00:27]} Nxd6 {[%emt 0:07:35]} 16. Qf3 {[%emt 0:00:59]} Qg5 {[%emt 0:13:55]} 17. Rfd1 {[%emt 0:01:38]} Qf5 {[%emt 0:05:48]} 18. Nf4 {[%emt 0:09:18]} g5 {[%emt 0:07:05]} 19. Nh5 {[%emt 0:05:19]} Qxf3 {[%emt 0:02:10]} 20. Nxf3 {[%emt 0:03:39]} Ne4 {[%emt 0:07:18]} 21. Ne5 {[%emt 0:13:39]} Nxe5 {[%emt 0:00:21]} 22. Bxe4 {[%emt 0:00:25]} Be2 {[%emt 0:00:06]} 23. Nf6+ {[%emt 0:01:20]} Kg7 {[%emt 0:00:08]} 24. Re1 {[%emt 0:01:05]} Nf3+ {[%emt 0:00:29]} 25. Bxf3 {[%emt 0:00:05]} Bxf3 {[%emt 0:00:05]} 26. Nd7 {[%emt 0:00:04]} Rfc8 {[%emt 0:02:51]} 27. Ne5 {[%emt 0:01:45]} Be4 {[%emt 0:00:49]} 28. f3 {[%emt 0:02:08]} Bf5 {[%emt 0:02:01]} 29. g4 {[%emt 0:00:10]} Bc2 {[%emt 0:00:12]} 30. Re2 {[%emt 0:00:39]} Ba4 {[%emt 0:00:17]} 31. Kf2 {[%emt 0:01:46]} a5 {[%emt 0:13:05]} 32. h4 {[%emt 0:01:54]} Bb5 {[%emt 0:02:04]} 33. Rd2 {[%emt 0:01:51]} h6 {[%emt 0:01:02]} 34. Ke3 {[%emt 0:06:17]} Be8 {[%emt 0:09:47]} 35. Rh1 {[%emt 0:02:21]} f6 {[%emt 0:00:38]} 36. Nd3 {[%emt 0:00:07]} Bg6 {[%emt 0:00:06]} 37. f4 {[%emt 0:07:19]} Bxd3 {[%emt 0:05:24]} 38. Rxd3 {[%emt 0:00:06]} Rh8 {[%emt 0:00:40]} 39. Rd2 {[%emt 0:03:54]} h5 {[%emt 0:01:03]} 40. fxg5 {[%emt 0:04:20]} fxg5 {[%emt 0:00:42]} 41. Rg2 {[%emt 0:40:17]} Kg6 {[%emt 0:01:29]} 42. Rhg1 {[%emt 0:00:00]} hxg4 {[%emt 0:02:09]} 43. Rxg4 {[%emt 0:00:00]} Rxh4 {[%emt 0:01:08]} 44. Rxh4 {[%emt 0:00:00]} 1-0

[Event "Lueneburger Schachfestival GM 2019"]
[Site "Lueneburg"]
[Date "2019.08.03"]
[Round "2.4"]
[White "Ovsejevitsch, Sergei"]
[Black "Parvanyan, Ashot"]
[Result "1-0"]
[ECO "E92"]
[WhiteElo "2590"]
[BlackElo "2423"]
[Annotator "ChessBase"]
[PlyCount "65"]
[EventDate "2019.08.02"]
[EventType "tourn"]
[EventCountry "GER"]
[SourceTitle "playchess.com"]
[Source "ChessBase"]
[SourceQuality "1"]
[TimeControl "40/5400+30:1800+30"]

1. Nf3 {[%emt 0:00:00]} Nf6 {[%emt 0:00:00]} 2. c4 {[%emt 0:00:00]} g6 {[%emt 0:00:33]} 3. Nc3 {[%emt 0:00:12]} Bg7 {[%emt 0:00:08]} 4. e4 {[%emt 0:00:20]} d6 {[%emt 0:00:05]} 5. d4 {[%emt 0:00:32]} O-O {[%emt 0:00:10]} 6. Be2 {[%emt 0:00:06]} e5 {[%emt 0:00:40]} 7. d5 {[%emt 0:01:13]} a5 {[%emt 0:01:12]} 8. g3 {[%emt 0:03:35]} Na6 {[%emt 0:02:50]} 9. Bg5 {[%emt 0:01:11]} Nc5 {[%emt 0:09:43]} 10. Nd2 {[%emt 0:02:36]} h6 {[%emt 0:04:03]} 11. Be3 {[%emt 0:00:30]} Ne8 {[%emt 0:11:13]} 12. g4 {[%emt 0:16:43]} c6 {[%emt 0:03:24]} 13. O-O {[%emt 0:11:24]} Bd7 {[%emt 0:05:33]} 14. Kh1 {[%emt 0:03:13]} Kh7 {[%emt 0:02:31]} 15. Rg1 {[%emt 0:07:23]} Rc8 {[%emt 0:16:40]} 16. b3 {[%emt 0:08:04]} Bf6 {[%emt 0:14:47]} 17. a3 {[%emt 0:08:57]} cxd5 {[%emt 0:06:20]} 18. Nxd5 {[%emt 0:01:03]} Bg5 {[%emt 0:01:39]} 19. b4 {[%emt 0:01:38]} Bxe3 {[%emt 0:04:23]} 20. fxe3 {[%emt 0:00:12]} Ne6 {[%emt 0:00:05]} 21. Nb1 {[%emt 0:05:09]} Ng5 {[%emt 0:13:02]} 22. Nbc3 {[%emt 0:00:42]} f5 {[%emt 0:01:24]} 23. gxf5 {[%emt 0:06:03]} gxf5 {[%emt 0:00:04]} 24. exf5 {[%emt 0:00:12]} Bxf5 {[%emt 0:00:11]} 25. Bg4 {[%emt 0:01:00]} Qd7 {[%emt 0:01:18]} 26. Bxf5+ {[%emt 0:16:54]} Qxf5 {[%emt 0:00:04]} 27. Qg4 {[%emt 0:01:06]} Nh3 {[%emt 0:00:56]} 28. Qxf5+ {[%emt 0:00:37]} Rxf5 {[%emt 0:00:04]} 29. Rg3 {[%emt 0:00:52]} Rh5 {[%emt 0:00:56]} 30. Ne4 {[%emt 0:02:05]} Rh4 {[%emt 0:00:17]} 31. Rf1 {[%emt 0:00:44]} Ng7 {[%emt 0:00:44]} 32. Rf7 {[%emt 0:00:39]} Ng5 {[%emt 0:00:29]} 33. Nxg5+ {[%emt 0:00:29]} 1-0

[Event "Lueneburger Schachfestival GM 2019"]
[Site "Lueneburg"]
[Date "2019.08.03"]
[Round "2.5"]
[White "Sriram, Jha"]
[Black "Pajeken, Jakob Leon"]
[Result "1/2-1/2"]
[ECO "A07"]
[WhiteElo "2381"]
[BlackElo "2314"]
[Annotator "NA"]
[PlyCount "53"]
[EventDate "2019.08.02"]
[EventType "tourn"]
[EventCountry "GER"]
[SourceTitle "playchess.com"]
[Source "ChessBase"]
[SourceQuality "1"]
[TimeControl "40/5400+30:1800+30"]

1. Nf3 {[%emt 0:00:55]} d5 {[%emt 0:00:00]} 2. g3 {[%emt 0:00:12]} Nf6 {[%emt 0:00:21]} 3. Bg2 {[%emt 0:00:11]} e6 {[%emt 0:00:17]} 4. O-O {[%emt 0:00:23]} Nbd7 {[%emt 0:00:16]} 5. d3 {[%emt 0:01:22]} b5 {[%emt 0:05:52]} 6. e4 {[%emt 0:17:38]} dxe4 {[%emt 0:12:41]} 7. dxe4 {[%emt 0:04:46]} Bb7 {[%emt 0:01:33]} 8. e5 {[%emt 0:04:42]} Nd5 {[%emt 0:01:12]} 9. Qe2 {[%emt 0:03:23]} a6 {[%emt 0:05:28]} 10. a4 {[%emt 0:11:19]} c5 {[%emt 0:05:35]} 11. axb5 {[%emt 0:11:48]} axb5 {[%emt 0:00:17]} 12. Rxa8 {[%emt 0:01:24]} Qxa8 {[%emt 0:00:13]} 13. Qxb5 {[%emt 0:00:34]} Ba6 {[%emt 0:21:35]} 14. Qa5 {[%emt 0:00:40]} Nb4 {[%emt 0:03:03]} 15. Rd1 {[%emt 0:10:35]} Bb7 {[%emt 0:05:58]} 16. Qxa8+ {[%emt 0:02:49]} Bxa8 {[%emt 0:00:03]} 17. c3 {[%emt 0:01:33]} Nc6 {[%emt 0:06:51]} 18. Na3 {[%emt 0:00:47]} Na5 {[%emt 0:01:05]} 19. Bf4 {[%emt 0:02:55]} h6 {[%emt 0:00:41]} 20. h4 {[%emt 0:01:10]} Be7 {[%emt 0:01:28]} 21. Nb5 {[%emt 0:01:54]} Bxf3 {[%emt 0:01:59]} 22. Bxf3 {[%emt 0:00:09]} g5 {[%emt 0:00:19]} 23. Ra1 {[%emt 0:15:33]} gxf4 {[%emt 0:02:55]} 24. Rxa5 {[%emt 0:00:07]} Nxe5 {[%emt 0:01:03]} 25. Ra8+ {[%emt 0:00:10]} Bd8 {[%emt 0:00:19]} 26. Kg2 {[%emt 0:00:46]} O-O {[%emt 0:01:11]} 27. Be2 {[%emt 0:04:00]} 1/2-1/2

[Event "Lueneburger Schachfestival GM 2019"]
[Site "Lueneburg"]
[Date "2019.08.04"]
[Round "3.1"]
[White "Pajeken, Jakob Leon"]
[Black "Reuker, Jari"]
[Result "1/2-1/2"]
[ECO "E14"]
[WhiteElo "2314"]
[BlackElo "2403"]
[Annotator "NA"]
[PlyCount "213"]
[EventDate "2019.08.02"]
[EventType "tourn"]
[EventCountry "GER"]
[SourceTitle "playchess.com"]
[Source "ChessBase"]
[SourceQuality "1"]
[TimeControl "40/5400+30:1800+30"]

1. d4 {[%emt 0:00:00]} Nf6 {[%emt 0:03:14]} 2. Nf3 {[%emt 0:00:00]} d5 {[%emt 0:00:08]} 3. c4 {[%emt 0:00:00]} e6 {[%emt 0:00:08]} 4. e3 {[%emt 0:00:04]} b6 {[%emt 0:00:18]} 5. Nc3 {[%emt 0:00:07]} Bb7 {[%emt 0:00:09]} 6. cxd5 {[%emt 0:00:06]} exd5 {[%emt 0:00:06]} 7. Bb5+ {[%emt 0:00:08]} c6 {[%emt 0:00:06]} 8. Bd3 {[%emt 0:00:05]} Bd6 {[%emt 0:00:10]} 9. O-O {[%emt 0:00:26] E14: Queen's Indian: Classical Variation (4 e3)} O-O {[%emt 0:00:14]} 10. e4 {[%emt 0:01:43]} (10. b3 Nbd7 11. Qe2 Qe7 12. Bb2 a6 13. Nd2 c5 14. a3 Rfe8 15. Nf3 Ne4 16. Bc2 Nxc3 17. Bxc3 {½-½ (45) Fedoseev,V (2706)-Maletin,P (2572) Sochi 2018}) 10... dxe4 {[%emt 0:05:00]} 11. Nxe4 {[%emt 0:00:26]} Nxe4 {[%emt 0:00:09]} 12. Bxe4 {[%emt 0:00:06]} Nd7 {[%emt 0:00:17]} 13. Bg5 {[%emt 0:04:17]} Qc7 {[%emt 0:00:28]} 14. Rc1 {[%emt 0:03:44]} h6 {[%emt 0:00:32]} 15. Bh4 {[%emt 0:03:26]} Bf4 {[%emt 0:00:35] [#]} 16. Bg3 $146 {[%emt 0:02:52]} ({Predecessor:} 16. Rc3 c5 17. Re1 Rfe8 18. Bxb7 Qxb7 19. Bg3 Bxg3 20. hxg3 Qd5 {½-½ (20) Levin,F (2503)-Mons,L (2464) Germany 2015}) 16... Bxg3 {[%emt 0:06:27]} 17. hxg3 {[%emt 0:00:10]} c5 {[%emt 0:06:14]} 18. Bb1 {[%emt 0:05:14]} a5 {[%emt 0:21:51]} 19. Qd3 {[%emt 0:10:17]} Nf6 {[%emt 0:17:08]} 20. Qf5 {[%emt 0:04:48]} Bc8 {[%emt 0:01:54]} 21. Qc2 {[%emt 0:02:22]} c4 {[%emt 0:10:37]} 22. b3 {[%emt 0:02:29]} b5 {[%emt 0:00:39]} 23. Rfd1 {[%emt 0:01:35]} Bb7 {[%emt 0:06:55]} 24. bxc4 {[%emt 0:01:32]} bxc4 {[%emt 0:00:10]} 25. Qxc4 {[%emt 0:03:18]} Qxc4 {[%emt 0:00:04]} 26. Rxc4 {[%emt 0:00:04]} Bd5 {[%emt 0:19:27]} 27. Rc5 {[%emt 0:01:23]} Rfd8 {[%emt 0:01:11]} 28. Ne5 {[%emt 0:01:03]} Kf8 {[%emt 0:04:25]} 29. Nc4 {[%emt 0:03:16]} Bxc4 {[%emt 0:06:25]} 30. Rxc4 {[%emt 0:00:10]} Rab8 {[%emt 0:00:41]} 31. Bc2 {[%emt 0:02:31]} Rb2 {[%emt 0:03:11]} 32. Bb3 {[%emt 0:01:19]} Rd7 {[%emt 0:05:27]} 33. f3 {[%emt 0:06:38]} Ke7 {[%emt 0:00:11]} 34. Rc8 {[%emt 0:01:44]} Ra7 {[%emt 0:00:49]} 35. Re1+ {[%emt 0:01:18]} Kd6 {[%emt 0:00:04]} 36. Rd8+ {[%emt 0:00:35]} Rd7 {[%emt 0:01:06]} 37. Rxd7+ {[%emt 0:01:59]} Kxd7 {[%emt 0:00:02]} 38. Re5 {[%emt 0:00:26]} Rd2 {[%emt 0:01:02]} 39. Rxa5 {[%emt 0:00:24]} Rxd4 {[%emt 0:00:02]} 40. Ra7+ {[%emt 0:00:20]} Kd6 {[%emt 0:01:03]} 41. Rxf7 {[%emt 0:30:13]} Nh5 {[%emt 0:00:35]} 42. Kh2 {[%emt 0:00:00]} Ke5 {[%emt 0:02:37]} 43. Re7+ {[%emt 0:00:00]} Kd6 {[%emt 0:01:16]} 44. Ra7 {[%emt 0:00:00]} Rd2 {[%emt 0:01:26]} 45. Ra6+ {[%emt 0:00:00]} Ke7 {[%emt 0:27:08]} 46. Ra5 {[%emt 0:00:00]} g5 {[%emt 0:01:04]} 47. f4 {[%emt 0:00:00]} Kf6 {[%emt 0:03:01]} 48. Ra6+ {[%emt 0:00:00]} Kg7 {[%emt 0:03:03]} 49. Ra7+ {[%emt 0:00:00]} Kh8 {[%emt 0:02:59]} 50. fxg5 {[%emt 0:00:00]} hxg5 {[%emt 0:00:16]} 51. Ra5 {[%emt 0:00:00]} Kg7 {[%emt 0:00:28]} 52. Rxg5+ {[%emt 0:00:00] Double Attack} Kh6 {[%emt 0:00:02]} 53. Rd5 {[%emt 0:00:00]} Rb2 {[%emt 0:00:35]} 54. Rd4 {[%emt 0:00:00]} Nf6 {[%emt 0:03:26]} 55. g4 {[%emt 0:00:00]} Kg5 {[%emt 0:02:44]} 56. Kg3 {[%emt 0:00:00]} Re2 {[%emt 0:00:55]} 57. Kf3 {[%emt 0:00:00]} Re1 {[%emt 0:03:27]} 58. Bc4 {[%emt 0:00:00]} Rc1 {[%emt 0:00:59]} 59. Be2 {[%emt 0:00:00]} Rc3+ {[%emt 0:01:04]} 60. Rd3 {[%emt 0:00:00]} Rc2 {[%emt 0:03:57]} 61. Ra3 {[%emt 0:00:00]} Nxg4 $18 {[%emt 0:02:44]} 62. Ra5+ {[%emt 0:00:00]} Kf6 {[%emt 0:00:13]} 63. Kxg4 {[%emt 0:00:31]} Rxe2 {[%emt 0:00:06]} 64. Kf3 {[%emt 0:00:05]} Rc2 {[%emt 0:00:15]} 65. Ra4 {[%emt 0:00:31]} Kg5 {[%emt 0:00:36]} 66. Ra8 {[%emt 0:00:44]} Kf6 {[%emt 0:01:45]} 67. g4 {[%emt 0:01:25]} Kg5 {[%emt 0:01:37]} 68. Ra5+ {[%emt 0:00:08]} Kf6 {[%emt 0:00:05]} 69. Kf4 {[%emt 0:00:06]} Rc4+ {[%emt 0:00:08]} 70. Kg3 {[%emt 0:00:09]} Rc2 {[%emt 0:00:56]} 71. Rf5+ {[%emt 0:00:14]} Kg6 {[%emt 0:00:06]} 72. Rf2 {[%emt 0:00:35]} Rc1 {[%emt 0:01:03]} 73. Re2 {[%emt 0:01:05]} Kg5 {[%emt 0:00:24]} 74. Re5+ {[%emt 0:48:49]} Kf6 {[%emt 0:00:56]} 75. Rf5+ {[%emt 0:00:46]} Kg6 {[%emt 0:00:00]} 76. Ra5 {[%emt 0:00:59]} Rc2 {[%emt 0:00:13]} 77. a4 {[%emt 0:00:33]} Ra2 {[%emt 0:00:39]} 78. Kf3 {[%emt 0:00:50]} Ra1 {[%emt 0:00:56]} 79. Kf4 {[%emt 0:00:48]} Rf1+ {[%emt 0:00:06]} 80. Ke5 {[%emt 0:00:33]} Rg1 {[%emt 0:00:39]} 81. Ra8 {[%emt 0:00:12]} Kh6 {[%emt 0:00:49]} 82. Kf6 {[%emt 0:47:48]} Rf1+ {[%emt 0:00:05]} 83. Ke6 {[%emt 0:00:07]} Rf4 {[%emt 0:00:36]} 84. a5 {[%emt 0:01:46]} Rxg4 {[%emt 0:00:58]} 85. Kd5 {[%emt 0:01:18]} Rg5+ {[%emt 0:02:03]} 86. Ke6 {[%emt 0:00:48]} Kg7 {[%emt 0:00:38]} 87. a6 {[%emt 0:00:12]} Rg6+ {[%emt 0:01:42]} 88. Kd7 {[%emt 0:00:03]} Rf6 {[%emt 0:00:18]} 89. Ke7 {[%emt 0:00:35]} Rf7+ {[%emt 0:00:10]} 90. Ke6 {[%emt 0:00:04]} Rf6+ {[%emt 0:00:04]} 91. Ke5 {[%emt 0:00:06]} Rb6 {[%emt 0:00:32]} 92. Ra7+ {[%emt 0:00:14]} Kg6 {[%emt 0:02:28]} 93. Ke4 {[%emt 0:00:46]} Re6+ {[%emt 0:00:21]} 94. Kd5 {[%emt 0:46:40]} Rf6 {[%emt 0:00:09]} 95. Ke5 {[%emt 0:00:13]} Rb6 {[%emt 0:00:08]} 96. Kd5 {[%emt 0:00:42]} Rf6 {[%emt 0:00:08]} 97. Ra8 {[%emt 0:00:06]} Kg7 {[%emt 0:00:14]} 98. Ke4 {[%emt 0:00:21]} Re6+ {[%emt 0:00:07]} 99. Kd4 {[%emt 0:00:09]} Rf6 {[%emt 0:00:20]} 100. Kd5 {[%emt 0:00:08]} Rf5+ {[%emt 0:00:21]} 101. Ke4 {[%emt 0:48:22]} Rf6 {[%emt 0:00:07]} 102. Ra7+ {[%emt 0:00:04]} Kg6 {[%emt 0:00:18]} 103. Kd5 {[%emt 0:00:20]} Rf5+ {[%emt 0:00:47]} 104. Ke6 {[%emt 0:00:22]} Rf6+ {[%emt 0:00:08]} 105. Ke5 {[%emt 0:00:05]} Rb6 {[%emt 0:00:52]} 106. Ra8 {[%emt 0:00:10]} Kg7 {[%emt 0:00:18]} 107. Ke4 {[%emt 0:49:40]} 1/2-1/2